[Event "*** Titled Tuesday 3|2 Blitz"]
[Site "Chess.com"]
[Date "2016.05.03"]
[Round "4"]
[White "SmoothAsAHedgehog"]
[Black "swayamsm"]
[Result "1-0"]
[WhiteElo "2542"]
[BlackElo "2508"]
[TimeControl "180+2"]
[EndTime "11:48:00 PDT"]
[Termination "SmoothAsAHedgehog won by resignation"]

1. Nf3 {[%clk 0:03:01.9]} 1... Nf6 {[%clk 0:02:57.2]} 2. c4 {[%clk 0:03:02.5]}
2... b6 {[%clk 0:02:55.5]} 3. g3 {[%clk 0:03:03.9]} 3... Bb7 {[%clk 0:02:57.4]}
4. Bg2 {[%clk 0:03:05.4]} 4... c5 {[%clk 0:02:58.5]} 5. O-O {[%clk 0:03:06.7]}
5... g6 {[%clk 0:02:59.4]} 6. b3 {[%clk 0:03:08.3]} 6... Bg7 {[%clk 0:03:00.9]}
7. Bb2 {[%clk 0:03:09.9]} 7... O-O {[%clk 0:03:02.5]} 8. d4 {[%clk 0:03:10.4]}
8... cxd4 {[%clk 0:03:02.1]} 9. Nxd4 {[%clk 0:03:06.2]} 9... Bxg2 {[%clk
0:03:04]} 10. Kxg2 {[%clk 0:03:08]} 10... Qc8 {[%clk 0:03:04.7]} 11. e3 {[%clk
0:03:07.2]} 11... Qb7+ {[%clk 0:03:06.2]} 12. Qf3 {[%clk 0:03:05.7]} 12... Qxf3+
{[%clk 0:03:06.8]} 13. Kxf3 {[%clk 0:03:07.6]} 13... Nc6 {[%clk 0:03:05.5]} 14.
Rd1 {[%clk 0:03:06.1]} 14... Rfd8 {[%clk 0:03:05.1]} 15. Nc3 {[%clk 0:03:02.7]}
15... Nxd4+ {[%clk 0:02:57.3]} 16. Rxd4 {[%clk 0:02:57.7]} 16... d6 {[%clk
0:02:58.5]} 17. Rd2 {[%clk 0:02:56.2]} 17... Rac8 {[%clk 0:03:00.1]} 18. Rad1
{[%clk 0:02:57.1]} 18... Rc7 {[%clk 0:03:00.2]} 19. Nb5 {[%clk 0:02:55.2]} 19...
Rb7 {[%clk 0:03:01.4]} 20. g4 {[%clk 0:02:37.5]} 20... a6 {[%clk 0:03:00.7]} 21.
Na3 {[%clk 0:02:30.6]} 21... Rc8 {[%clk 0:02:58.8]} 22. Rc2 {[%clk 0:02:22.6]}
22... Nd7 {[%clk 0:02:55.1]} 23. Bxg7 {[%clk 0:02:21.4]} 23... Kxg7 {[%clk
0:02:57]} 24. Ke2 {[%clk 0:02:20.5]} 24... Ne5 {[%clk 0:02:56.9]} 25. h3 {[%clk
0:02:21.2]} 25... b5 {[%clk 0:02:52.3]} 26. f4 {[%clk 0:02:21.6]} 26... Nd7
{[%clk 0:02:50]} 27. cxb5 {[%clk 0:02:19.1]} 27... Rxc2+ {[%clk 0:02:51.9]} 28.
Nxc2 {[%clk 0:02:20.6]} 28... axb5 {[%clk 0:02:53.8]} 29. Nb4 {[%clk 0:02:19.9]}
29... Nc5 {[%clk 0:02:52.7]} 30. Rc1 {[%clk 0:02:19.3]} 30... e6 {[%clk
0:02:52.1]} 31. Nd3 {[%clk 0:02:13]} 31... Ne4 {[%clk 0:02:51.7]} 32. Rc2 {[%clk
0:02:06.3]} 32... Ra7 {[%clk 0:02:52.5]} 33. Kf3 {[%clk 0:02:06.7]} 33... f5
{[%clk 0:02:52]} 34. Nf2 {[%clk 0:01:56]} 34... Nxf2 {[%clk 0:02:45.6]} 35. Kxf2
{[%clk 0:01:57.9]} 35... b4 {[%clk 0:02:47.2]} 36. Kf3 {[%clk 0:01:58.1]} 36...
d5 {[%clk 0:02:47.3]} 37. Ke2 {[%clk 0:01:51.2]} 37... h6 {[%clk 0:02:48]} 38.
Kd3 {[%clk 0:01:50.2]} 38... Kf6 {[%clk 0:02:49.6]} 39. Kd4 {[%clk 0:01:50]}
39... Ra8 {[%clk 0:02:42.4]} 40. Rg2 {[%clk 0:01:49.9]} 40... Rc8 {[%clk
0:02:42.4]} 41. a3 {[%clk 0:01:34.9]} 41... bxa3 {[%clk 0:02:39.7]} 42. Ra2
{[%clk 0:01:35.5]} 42... Ra8 {[%clk 0:02:39.5]} 43. b4 {[%clk 0:01:35.6]} 43...
g5 {[%clk 0:02:40.2]} 44. fxg5+ {[%clk 0:01:35.2]} 44... hxg5 {[%clk 0:02:42.1]}
45. b5 {[%clk 0:01:34.6]} 45... f4 {[%clk 0:02:42.3]} 46. exf4 {[%clk
0:01:26.6]} 46... gxf4 {[%clk 0:02:44.2]} 47. h4 {[%clk 0:01:28.2]} 47... Ra5
{[%clk 0:02:42]} 48. Kc5 {[%clk 0:01:26.6]} 48... f3 {[%clk 0:02:43.5]} 49. Kb6
{[%clk 0:01:21.2]} 49... Ra4 {[%clk 0:02:44.3]} 50. Kc5 {[%clk 0:01:16]} 50...
Ke5 {[%clk 0:02:36.4]} 51. b6 {[%clk 0:01:15.5]} 51... f2 {[%clk 0:02:37]} 52.
Re2+ {[%clk 0:01:13.3]} 52... Kf4 {[%clk 0:02:35.4]} 53. Rxf2+ {[%clk
0:01:14.3]} 53... Kg3 {[%clk 0:02:32.8]} 54. Ra2 {[%clk 0:01:12.6]} 54... Ra5+
{[%clk 0:02:31.5]} 55. Kb4 {[%clk 0:01:12.2]} 55... Ra6 {[%clk 0:02:32.2]} 56.
Rxa3+ {[%clk 0:01:11.3]} 56... Rxa3 {[%clk 0:02:33.5]} 57. Kxa3 {[%clk
0:01:13.2]} 1-0

[Event "*** Titled Tuesday 3|2 Blitz"]
[Site "Chess.com"]
[Date "2016.05.03"]
[Round "4"]
[White "Bentery"]
[Black "dretch"]
[Result "0-1"]
[WhiteElo "2363"]
[BlackElo "2563"]
[TimeControl "180+2"]
[EndTime "11:48:09 PDT"]
[Termination "dretch won by resignation"]

1. Nf3 {[%clk 0:03:00.5]} 1... d5 {[%clk 0:03:01.1]} 2. g3 {[%clk 0:03:01.9]}
2... Bg4 {[%clk 0:03:00.8]} 3. Bg2 {[%clk 0:03:03]} 3... Nd7 {[%clk 0:03:02]} 4.
c4 {[%clk 0:03:04.3]} 4... e6 {[%clk 0:03:02.1]} 5. cxd5 {[%clk 0:03:05.6]} 5...
exd5 {[%clk 0:03:03.3]} 6. O-O {[%clk 0:03:06.8]} 6... Ngf6 {[%clk 0:03:02.1]}
7. d3 {[%clk 0:03:08.1]} 7... Bd6 {[%clk 0:03:01]} 8. Qb3 {[%clk 0:02:59.4]}
8... Nc5 {[%clk 0:02:58.8]} 9. Qc2 {[%clk 0:03:00.6]} 9... O-O {[%clk
0:02:58.5]} 10. h3 {[%clk 0:03:00.3]} 10... Bd7 {[%clk 0:02:51.9]} 11. Nc3
{[%clk 0:02:59.1]} 11... Re8 {[%clk 0:02:50.1]} 12. b4 {[%clk 0:02:53.3]} 12...
Ne6 {[%clk 0:02:47.7]} 13. Rb1 {[%clk 0:02:46.9]} 13... d4 {[%clk 0:02:38.3]}
14. Ne4 {[%clk 0:02:47.8]} 14... Be7 {[%clk 0:02:08.5]} 15. Ne5 {[%clk
0:02:37.6]} 15... Nd5 {[%clk 0:02:09.5]} 16. Nc5 {[%clk 0:02:33]} 16... Nxb4
{[%clk 0:02:06.9]} 17. Rxb4 {[%clk 0:02:21.5]} 17... Bxc5 {[%clk 0:02:01.5]} 18.
Rc4 {[%clk 0:02:13.4]} 18... Bd6 {[%clk 0:01:10.4]} 19. Nxd7 {[%clk 0:02:14]}
19... c6 {[%clk 0:01:11]} 20. Rxc6 {[%clk 0:00:54.3]} 20... bxc6 {[%clk
0:01:03.9]} 21. Qxc6 {[%clk 0:00:56.2]} 21... Qe7 {[%clk 0:01:04.6]} 22. f4
{[%clk 0:00:24.4]} 22... Rac8 {[%clk 0:00:49.3]} 23. Qa4 {[%clk 0:00:25.5]}
23... Rxc1 {[%clk 0:00:50.3]} 24. Rxc1 {[%clk 0:00:24.8]} 24... Nxf4 {[%clk
0:00:51.3]} 25. gxf4 {[%clk 0:00:21.9]} 25... Qe3+ {[%clk 0:00:50.8]} 0-1

[Event "*** Titled Tuesday 3|2 Blitz"]
[Site "Chess.com"]
[Date "2016.05.03"]
[Round "4"]
[White "Anton_Demchenko"]
[Black "MinhGTrAn"]
[Result "1-0"]
[WhiteElo "2659"]
[BlackElo "2626"]
[TimeControl "180+2"]
[EndTime "11:48:14 PDT"]
[Termination "Anton_Demchenko won on time"]

1. e4 {[%clk 0:03:01.9]} 1... c5 {[%clk 0:02:57.9]} 2. Nf3 {[%clk 0:03:03]} 2...
d6 {[%clk 0:02:58.4]} 3. d4 {[%clk 0:03:04.1]} 3... cxd4 {[%clk 0:03:00.3]} 4.
Nxd4 {[%clk 0:03:06]} 4... Nf6 {[%clk 0:03:01.5]} 5. Nc3 {[%clk 0:03:07.6]} 5...
a6 {[%clk 0:03:02.4]} 6. f3 {[%clk 0:03:09.2]} 6... e5 {[%clk 0:03:02.4]} 7. Nb3
{[%clk 0:03:10.2]} 7... Be6 {[%clk 0:02:59.1]} 8. Be3 {[%clk 0:03:11.4]} 8...
Nbd7 {[%clk 0:02:56.5]} 9. g4 {[%clk 0:03:11]} 9... h6 {[%clk 0:02:55.7]} 10.
Qd2 {[%clk 0:03:11.4]} 10... b5 {[%clk 0:02:54.2]} 11. O-O-O {[%clk 0:03:06.1]}
11... Nb6 {[%clk 0:02:51.4]} 12. Qf2 {[%clk 0:02:57.4]} 12... Nfd7 {[%clk
0:02:47.6]} 13. Kb1 {[%clk 0:02:30.1]} 13... Rc8 {[%clk 0:02:41.3]} 14. Nd5
{[%clk 0:02:29.7]} 14... Bxd5 {[%clk 0:02:31.7]} 15. exd5 {[%clk 0:02:31.6]}
15... Nc4 {[%clk 0:02:32.8]} 16. Bc1 {[%clk 0:02:31.9]} 16... Be7 {[%clk
0:02:25.8]} 17. h4 {[%clk 0:02:19.4]} 17... a5 {[%clk 0:02:23.5]} 18. Nd2 {[%clk
0:02:10.3]} 18... Qc7 {[%clk 0:02:20]} 19. Nxc4 {[%clk 0:01:27.2]} 19... bxc4
{[%clk 0:02:20.8]} 20. c3 {[%clk 0:01:28.6]} 20... a4 {[%clk 0:01:57.5]} 21. a3
{[%clk 0:01:29.5]} 21... Qb7 {[%clk 0:01:50.6]} 22. Qc2 {[%clk 0:01:22.8]} 22...
Qb5 {[%clk 0:01:49.4]} 23. f4 {[%clk 0:01:08]} 23... Rc5 {[%clk 0:01:00.5]} 24.
Bg2 {[%clk 0:01:05.3]} 1-0

[Event "*** Titled Tuesday 3|2 Blitz"]
[Site "Chess.com"]
[Date "2016.05.03"]
[Round "4"]
[White "AleksandrNevski"]
[Black "Colombiano07"]
[Result "0-1"]
[WhiteElo "2393"]
[BlackElo "2252"]
[TimeControl "180+2"]
[EndTime "11:48:19 PDT"]
[Termination "Colombiano07 won on time"]

1. e4 {[%clk 0:02:42.3]} 1... c5 {[%clk 0:03:00.2]} 2. Nf3 {[%clk 0:02:42.7]}
2... Nc6 {[%clk 0:03:00.5]} 3. d4 {[%clk 0:02:43]} 3... cxd4 {[%clk 0:03:00.9]}
4. Nxd4 {[%clk 0:02:44.9]} 4... e5 {[%clk 0:03:01.2]} 5. Nb5 {[%clk 0:02:43.3]}
5... d6 {[%clk 0:03:01.9]} 6. g3 {[%clk 0:02:24.8]} 6... Be7 {[%clk 0:02:57.2]}
7. Bg2 {[%clk 0:02:23.8]} 7... a6 {[%clk 0:02:52.5]} 8. N5c3 {[%clk 0:02:24]}
8... Nf6 {[%clk 0:02:51.8]} 9. O-O {[%clk 0:02:25.4]} 9... h6 {[%clk 0:02:50.5]}
10. a4 {[%clk 0:02:26.6]} 10... O-O {[%clk 0:02:50.3]} 11. h3 {[%clk 0:02:22.8]}
11... Rb8 {[%clk 0:02:38.9]} 12. Be3 {[%clk 0:02:20.4]} 12... b5 {[%clk
0:02:38.3]} 13. axb5 {[%clk 0:02:20.5]} 13... axb5 {[%clk 0:02:38.9]} 14. Nd2
{[%clk 0:02:20]} 14... Be6 {[%clk 0:02:37.1]} 15. Nd5 {[%clk 0:02:17.3]} 15...
Qd7 {[%clk 0:02:25.3]} 16. Kh2 {[%clk 0:02:10.2]} 16... Rfc8 {[%clk 0:02:19.3]}
17. c3 {[%clk 0:02:03.5]} 17... Bd8 {[%clk 0:02:17.4]} 18. Nb3 {[%clk
0:01:11.8]} 18... Bxd5 {[%clk 0:02:04.8]} 19. exd5 {[%clk 0:01:11.3]} 19... Ne7
{[%clk 0:02:06.4]} 20. Na5 {[%clk 0:00:50.4]} 20... Bb6 {[%clk 0:01:50.9]} 21.
Nc6 {[%clk 0:00:44.2]} 21... Nxc6 {[%clk 0:01:51.3]} 22. dxc6 {[%clk 0:00:44.6]}
22... Qc7 {[%clk 0:01:52.9]} 23. Bxb6 {[%clk 0:00:42.3]} 23... Rxb6 {[%clk
0:01:53.1]} 24. f4 {[%clk 0:00:39.8]} 24... e4 {[%clk 0:01:52.9]} 25. Qd4 {[%clk
0:00:40.7]} 25... Qxc6 {[%clk 0:01:53.7]} 26. Ra7 {[%clk 0:00:39.4]} 26... d5
{[%clk 0:01:48.2]} 27. Rd1 {[%clk 0:00:35.9]} 27... Rb7 {[%clk 0:01:39.7]} 28.
Raa1 {[%clk 0:00:34.1]} 28... Qc4 {[%clk 0:01:37.9]} 29. g4 {[%clk 0:00:34.6]}
29... Qxd4 {[%clk 0:01:37.3]} 30. Rxd4 {[%clk 0:00:35.2]} 30... Rc4 {[%clk
0:01:36.2]} 31. g5 {[%clk 0:00:35.2]} 31... hxg5 {[%clk 0:01:33.7]} 32. fxg5
{[%clk 0:00:35.2]} 32... Rxd4 {[%clk 0:01:34.5]} 33. cxd4 {[%clk 0:00:35.2]}
33... Nh5 {[%clk 0:01:36]} 0-1

[Event "*** Titled Tuesday 3|2 Blitz"]
[Site "Chess.com"]
[Date "2016.05.03"]
[Round "4"]
[White "jsdbv"]
[Black "the_drake"]
[Result "1-0"]
[WhiteElo "2325"]
[BlackElo "2203"]
[TimeControl "180+2"]
[EndTime "11:48:44 PDT"]
[Termination "jsdbv won on time"]

1. d4 {[%clk 0:03:01.9]} 1... d5 {[%clk 0:02:58.2]} 2. c4 {[%clk 0:02:59.5]}
2... e6 {[%clk 0:02:57.3]} 3. Nc3 {[%clk 0:02:58.1]} 3... Nf6 {[%clk 0:02:57]}
4. Nf3 {[%clk 0:02:55.2]} 4... Nbd7 {[%clk 0:02:57.8]} 5. e3 {[%clk 0:02:52.7]}
5... c6 {[%clk 0:02:53.8]} 6. Bd3 {[%clk 0:02:50.7]} 6... dxc4 {[%clk
0:02:51.4]} 7. Bxc4 {[%clk 0:02:51.3]} 7... b5 {[%clk 0:02:49.4]} 8. Bd3 {[%clk
0:02:48.5]} 8... Bb7 {[%clk 0:02:45.9]} 9. O-O {[%clk 0:02:48.3]} 9... a6 {[%clk
0:02:43.7]} 10. Ne4 {[%clk 0:02:42.9]} 10... Nxe4 {[%clk 0:02:33.6]} 11. Bxe4
{[%clk 0:02:43.2]} 11... Nf6 {[%clk 0:02:34.5]} 12. Bd3 {[%clk 0:02:41]} 12...
c5 {[%clk 0:02:35.4]} 13. dxc5 {[%clk 0:02:39.2]} 13... Bxc5 {[%clk 0:02:34.5]}
14. b3 {[%clk 0:02:39.5]} 14... Bxf3 {[%clk 0:02:30.2]} 15. Qxf3 {[%clk
0:02:34.9]} 15... O-O {[%clk 0:02:27.3]} 16. Rd1 {[%clk 0:02:34.1]} 16... Qb6
{[%clk 0:02:23]} 17. Bb2 {[%clk 0:02:32.4]} 17... Be7 {[%clk 0:02:22.2]} 18. g4
{[%clk 0:02:27.4]} 18... Qc5 {[%clk 0:02:12.5]} 19. h4 {[%clk 0:02:22.2]} 19...
Rfd8 {[%clk 0:02:06.7]} 20. g5 {[%clk 0:02:19.3]} 20... Ne8 {[%clk 0:02:06.7]}
21. Bd4 {[%clk 0:02:13.3]} 21... Qb4 {[%clk 0:01:57]} 22. Rac1 {[%clk
0:02:00.2]} 22... e5 {[%clk 0:01:57.5]} 23. Qe4 {[%clk 0:01:53.1]} 23... f5
{[%clk 0:01:22]} 24. Qxf5 {[%clk 0:01:45.8]} 24... exd4 {[%clk 0:01:04.9]} 25.
Qxh7+ {[%clk 0:01:40.5]} 25... Kf7 {[%clk 0:00:58.8]} 26. g6+ {[%clk 0:01:36.7]}
26... Kf6 {[%clk 0:00:56.7]} 27. Qh5 {[%clk 0:01:34.4]} 27... Nd6 {[%clk
0:00:31.6]} 28. Rc6 {[%clk 0:01:28.5]} 28... Qc5 {[%clk 0:00:10.2]} 29. Qxc5
{[%clk 0:01:19.3]} 29... Bf8 {[%clk 0:00:08.1]} 30. Qf5+ {[%clk 0:01:16.3]}
30... Ke7 {[%clk 0:00:08.8]} 31. Rc7+ {[%clk 0:01:06.9]} 1-0

[Event "*** Titled Tuesday 3|2 Blitz"]
[Site "Chess.com"]
[Date "2016.05.03"]
[Round "4"]
[White "Lupul_Cenusiu"]
[Black "Usurpov"]
[Result "1-0"]
[WhiteElo "2426"]
[BlackElo "2335"]
[TimeControl "180+2"]
[EndTime "11:48:47 PDT"]
[Termination "Lupul_Cenusiu won on time"]

1. d4 {[%clk 0:03:01.9]} 1... Nf6 {[%clk 0:03:00.3]} 2. Bg5 {[%clk 0:03:01.7]}
2... g6 {[%clk 0:02:59.4]} 3. Nd2 {[%clk 0:03:01.5]} 3... Bg7 {[%clk 0:02:58.1]}
4. Ngf3 {[%clk 0:03:02]} 4... d6 {[%clk 0:02:58.7]} 5. h3 {[%clk 0:03:02.3]}
5... O-O {[%clk 0:02:56.8]} 6. e3 {[%clk 0:03:03.1]} 6... c5 {[%clk 0:02:48.4]}
7. c3 {[%clk 0:03:03.7]} 7... b6 {[%clk 0:02:39.2]} 8. Bc4 {[%clk 0:02:57.5]}
8... Bb7 {[%clk 0:02:36.4]} 9. a4 {[%clk 0:02:57.8]} 9... a6 {[%clk 0:02:35.9]}
10. O-O {[%clk 0:02:57.8]} 10... Nbd7 {[%clk 0:02:17.9]} 11. Re1 {[%clk
0:02:56.8]} 11... Ne4 {[%clk 0:01:47.3]} 12. Nxe4 {[%clk 0:02:52.9]} 12... Bxe4
{[%clk 0:01:49.2]} 13. Qe2 {[%clk 0:02:43.5]} 13... Bb7 {[%clk 0:01:25.8]} 14.
e4 {[%clk 0:02:43.9]} 14... cxd4 {[%clk 0:00:54.5]} 15. cxd4 {[%clk 0:02:44.3]}
15... Re8 {[%clk 0:00:50.1]} 16. Rad1 {[%clk 0:02:40]} 16... d5 {[%clk
0:00:39.3]} 17. exd5 {[%clk 0:02:06.2]} 17... Nf6 {[%clk 0:00:32.7]} 18. Ne5
{[%clk 0:01:40.3]} 18... Nxd5 {[%clk 0:00:07.6]} 19. Bd2 {[%clk 0:01:19.3]}
19... Qd6 {[%clk 0:00:07.2]} 20. Rc1 {[%clk 0:01:16.2]} 20... e6 {[%clk
0:00:05.5]} 21. Qf3 {[%clk 0:01:15.6]} 21... Re7 {[%clk 0:00:03.2]} 22. Qg4
{[%clk 0:01:11.8]} 22... Rc8 {[%clk 0:00:02.5]} 23. Qh4 {[%clk 0:01:07.2]} 23...
Rec7 {[%clk 0:00:03.3]} 24. b3 {[%clk 0:01:07.2]} 24... b5 {[%clk 0:00:03.9]}
25. axb5 {[%clk 0:01:08.1]} 25... axb5 {[%clk 0:00:05]} 26. Bxb5 {[%clk
0:01:09.2]} 26... Rxc1 {[%clk 0:00:05.6]} 27. Rxc1 {[%clk 0:01:05.7]} 27...
Rxc1+ {[%clk 0:00:05.8]} 28. Bxc1 {[%clk 0:01:06.8]} 28... Nc3 {[%clk
0:00:06.6]} 29. Bf1 {[%clk 0:01:05.5]} 29... Qd5 {[%clk 0:00:04.5]} 30. Qe7
{[%clk 0:01:02.5]} 30... f6 {[%clk 0:00:02.2]} 31. Qf7+ {[%clk 0:01:02.7]} 31...
Kh8 {[%clk 0:00:02.1]} 32. Qe8+ {[%clk 0:01:03.9]} 1-0

[Event "*** Titled Tuesday 3|2 Blitz"]
[Site "Chess.com"]
[Date "2016.05.03"]
[Round "4"]
[White "Rickstereo"]
[Black "Makalexa"]
[Result "1-0"]
[WhiteElo "2190"]
[BlackElo "2062"]
[TimeControl "180+2"]
[EndTime "11:48:55 PDT"]
[Termination "Rickstereo won by resignation"]

1. c4 {[%clk 0:03:01.9]} 1... c5 {[%clk 0:02:58.8]} 2. g3 {[%clk 0:02:53]} 2...
g6 {[%clk 0:02:58.6]} 3. Bg2 {[%clk 0:02:50.5]} 3... Bg7 {[%clk 0:02:59.7]} 4.
Nc3 {[%clk 0:02:47.7]} 4... Nc6 {[%clk 0:02:59]} 5. a3 {[%clk 0:02:47.1]} 5...
Nh6 {[%clk 0:02:57.5]} 6. b4 {[%clk 0:02:42.5]} 6... cxb4 {[%clk 0:02:41.1]} 7.
axb4 {[%clk 0:02:42.6]} 7... Nxb4 {[%clk 0:02:41]} 8. d4 {[%clk 0:02:28.4]} 8...
d5 {[%clk 0:02:28]} 9. Qa4+ {[%clk 0:02:16]} 9... Qd7 {[%clk 0:01:55.1]} 10.
Qxb4 {[%clk 0:02:11]} 10... O-O {[%clk 0:01:43.2]} 11. Bxh6 {[%clk 0:01:59.9]}
11... Bxh6 {[%clk 0:01:43.5]} 12. e3 {[%clk 0:02:00.6]} 12... dxc4 {[%clk
0:01:41.4]} 13. Nge2 {[%clk 0:01:57.2]} 13... Qg4 {[%clk 0:01:29.7]} 14. h3
{[%clk 0:01:43.9]} 14... Qh5 {[%clk 0:01:03.6]} 15. Ra5 {[%clk 0:01:44.6]} 15...
f5 {[%clk 0:01:01.4]} 16. Qxc4+ {[%clk 0:01:44.3]} 16... Kh8 {[%clk 0:01:01.8]}
17. Nf4 {[%clk 0:01:38.7]} 17... Qg5 {[%clk 0:00:58.9]} 18. O-O {[%clk
0:01:17.7]} 18... Qf6 {[%clk 0:00:56.7]} 19. Nfd5 {[%clk 0:01:13.1]} 19... Qf7
{[%clk 0:00:55.4]} 20. Qc7 {[%clk 0:01:09.7]} 20... Be6 {[%clk 0:00:45.9]} 21.
Qxe7 {[%clk 0:01:05.3]} 21... Qg8 {[%clk 0:00:42.5]} 22. Nf6 {[%clk 0:01:00.8]}
22... Qg7 {[%clk 0:00:25]} 23. Qxe6 {[%clk 0:00:44.4]} 23... Rxf6 {[%clk
0:00:21.8]} 24. Qe5 {[%clk 0:00:45.1]} 24... Qf7 {[%clk 0:00:09.6]} 25. Nd5
{[%clk 0:00:45.2]} 25... Bg7 {[%clk 0:00:10.4]} 26. Nxf6 {[%clk 0:00:44.4]}
26... Bxf6 {[%clk 0:00:12.3]} 27. Bd5 {[%clk 0:00:41.8]} 27... Qf8 {[%clk
0:00:12.6]} 28. Qe6 {[%clk 0:00:39.1]} 28... Re8 {[%clk 0:00:13]} 29. Qf7 {[%clk
0:00:38.2]} 1-0

[Event "*** Titled Tuesday 3|2 Blitz"]
[Site "Chess.com"]
[Date "2016.05.03"]
[Round "4"]
[White "Winehouse83"]
[Black "ZEN-22"]
[Result "0-1"]
[WhiteElo "2358"]
[BlackElo "2406"]
[TimeControl "180+2"]
[EndTime "11:49:05 PDT"]
[Termination "ZEN-22 won by resignation"]

1. d4 {[%clk 0:03:01.9]} 1... d5 {[%clk 0:02:59.5]} 2. c4 {[%clk 0:03:02.6]}
2... e6 {[%clk 0:03:00.5]} 3. Nf3 {[%clk 0:03:02.5]} 3... a6 {[%clk 0:03:01.4]}
4. cxd5 {[%clk 0:02:59.8]} 4... exd5 {[%clk 0:03:02.2]} 5. Nc3 {[%clk
0:03:00.7]} 5... Bb4 {[%clk 0:03:01.2]} 6. Qb3 {[%clk 0:02:44.5]} 6... Nc6
{[%clk 0:03:01.7]} 7. a3 {[%clk 0:02:44.8]} 7... Ba5 {[%clk 0:03:01.3]} 8. Bg5
{[%clk 0:02:32.9]} 8... f6 {[%clk 0:03:01.8]} 9. Bf4 {[%clk 0:02:28.4]} 9...
Nge7 {[%clk 0:03:01.1]} 10. e3 {[%clk 0:02:29.3]} 10... g5 {[%clk 0:03:00.9]}
11. Bg3 {[%clk 0:02:28.6]} 11... h5 {[%clk 0:03:01.8]} 12. h3 {[%clk 0:02:05.9]}
12... Be6 {[%clk 0:02:37.2]} 13. O-O-O {[%clk 0:01:57.2]} 13... Bxc3 {[%clk
0:02:17.9]} 14. Qxc3 {[%clk 0:01:54.2]} 14... Nf5 {[%clk 0:02:18.9]} 15. Bd3
{[%clk 0:01:29.2]} 15... Nxg3 {[%clk 0:02:16.9]} 16. Bg6+ {[%clk 0:01:28.7]}
16... Bf7 {[%clk 0:02:09.9]} 17. Bxf7+ {[%clk 0:01:28.7]} 17... Kxf7 {[%clk
0:02:11.8]} 18. fxg3 {[%clk 0:01:29.8]} 18... Qd6 {[%clk 0:02:12.2]} 19. Rhf1
{[%clk 0:00:57.1]} 19... Kg7 {[%clk 0:02:12.2]} 20. g4 {[%clk 0:00:47.4]} 20...
hxg4 {[%clk 0:02:11.7]} 21. hxg4 {[%clk 0:00:49.3]} 21... Rae8 {[%clk
0:02:11.8]} 22. Qd3 {[%clk 0:00:35.7]} 22... Re4 {[%clk 0:02:07.7]} 23. Rh1
{[%clk 0:00:32.6]} 23... Rxh1 {[%clk 0:02:06]} 24. Rxh1 {[%clk 0:00:34.5]} 24...
Qg3 {[%clk 0:02:05.1]} 25. Qe2 {[%clk 0:00:22.6]} 25... Qxg4 {[%clk 0:01:57.5]}
26. Qf2 {[%clk 0:00:23.2]} 26... Re8 {[%clk 0:01:42.9]} 27. g3 {[%clk
0:00:13.1]} 27... Rh8 {[%clk 0:01:40.5]} 28. Rxh8 {[%clk 0:00:12.2]} 28... Kxh8
{[%clk 0:01:41.7]} 29. Ne1 {[%clk 0:00:13.2]} 29... Qe6 {[%clk 0:01:42]} 30. Nd3
{[%clk 0:00:13.8]} 30... b6 {[%clk 0:01:42.5]} 31. Kd2 {[%clk 0:00:12.3]} 31...
Na5 {[%clk 0:01:43.4]} 32. Qf3 {[%clk 0:00:06.8]} 32... Nc4+ {[%clk 0:01:44]}
33. Ke2 {[%clk 0:00:07.3]} 33... Nd6 {[%clk 0:01:45.9]} 34. Qh5+ {[%clk
0:00:07.9]} 34... Kg7 {[%clk 0:01:46.7]} 35. Nf2 {[%clk 0:00:06.4]} 35... Nf5
{[%clk 0:01:47.2]} 36. Ng4 {[%clk 0:00:07.8]} 36... Nxd4+ {[%clk 0:01:48.2]} 37.
Kd3 {[%clk 0:00:09.7]} 37... Qe4+ {[%clk 0:01:47.7]} 38. Kc3 {[%clk 0:00:09]}
38... Nb5+ {[%clk 0:01:48.1]} 39. Kd2 {[%clk 0:00:09.6]} 39... Qg6 {[%clk
0:01:50]} 40. Qh1 {[%clk 0:00:09]} 40... c6 {[%clk 0:01:46.6]} 41. Qc1 {[%clk
0:00:07.2]} 41... Qe4 {[%clk 0:01:46.9]} 42. Qd1 {[%clk 0:00:05.9]} 42... Nd6
{[%clk 0:01:45]} 43. Qe2 {[%clk 0:00:06.7]} 43... Nc4+ {[%clk 0:01:45.9]} 44.
Kc3 {[%clk 0:00:06.9]} 44... Nxe3 {[%clk 0:01:44.3]} 45. Nxe3 {[%clk 0:00:06.3]}
45... d4+ {[%clk 0:01:45.1]} 46. Kd2 {[%clk 0:00:08.2]} 46... Qxe3+ {[%clk
0:01:46.3]} 47. Qxe3 {[%clk 0:00:10.1]} 47... dxe3+ {[%clk 0:01:48.2]} 48. Kxe3
{[%clk 0:00:12]} 48... f5 {[%clk 0:01:49.7]} 0-1

[Event "*** Titled Tuesday 3|2 Blitz"]
[Site "Chess.com"]
[Date "2016.05.03"]
[Round "4"]
[White "JusticeBot"]
[Black "underdogchss"]
[Result "1-0"]
[WhiteElo "2554"]
[BlackElo "2361"]
[TimeControl "180+2"]
[EndTime "11:49:12 PDT"]
[Termination "JusticeBot won by resignation"]

1. e4 {[%clk 0:03:01.6]} 1... e5 {[%clk 0:03:00.5]} 2. Nf3 {[%clk 0:03:00.3]}
2... Nc6 {[%clk 0:03:01.4]} 3. Bc4 {[%clk 0:03:01.8]} 3... Bc5 {[%clk
0:03:01.8]} 4. b4 {[%clk 0:03:02.5]} 4... Bxb4 {[%clk 0:02:55.9]} 5. c3 {[%clk
0:03:03.7]} 5... Be7 {[%clk 0:02:54.7]} 6. d4 {[%clk 0:03:04.9]} 6... Na5 {[%clk
0:02:53.6]} 7. Be2 {[%clk 0:03:05.2]} 7... d6 {[%clk 0:02:38.5]} 8. Qa4+ {[%clk
0:03:05.3]} 8... c6 {[%clk 0:02:36.9]} 9. dxe5 {[%clk 0:03:06.8]} 9... b5 {[%clk
0:02:31.3]} 10. Qc2 {[%clk 0:03:06.3]} 10... dxe5 {[%clk 0:02:31.4]} 11. Nxe5
{[%clk 0:03:08.2]} 11... Nf6 {[%clk 0:02:29.8]} 12. O-O {[%clk 0:03:04.1]} 12...
Qc7 {[%clk 0:02:29.5]} 13. f4 {[%clk 0:03:01]} 13... O-O {[%clk 0:02:29.8]} 14.
Nd2 {[%clk 0:03:01.2]} 14... Nd7 {[%clk 0:02:10.7]} 15. Ndf3 {[%clk 0:02:41.7]}
15... Nxe5 {[%clk 0:02:02.6]} 16. Nxe5 {[%clk 0:02:43.6]} 16... f6 {[%clk
0:01:51]} 17. Nf3 {[%clk 0:02:35.2]} 17... Be6 {[%clk 0:01:48.2]} 18. Be3 {[%clk
0:02:20.6]} 18... Bc4 {[%clk 0:01:38.3]} 19. Nd4 {[%clk 0:02:19.4]} 19... Bc5
{[%clk 0:01:23.7]} 20. Kh1 {[%clk 0:02:07.5]} 20... Rfe8 {[%clk 0:01:08]} 21.
Rae1 {[%clk 0:01:14.4]} 21... Qf7 {[%clk 0:00:58.4]} 22. e5 {[%clk 0:00:55.2]}
22... Bxe2 {[%clk 0:00:51.4]} 23. Qxe2 {[%clk 0:00:50.2]} 23... Bxd4 {[%clk
0:00:20.1]} 24. Bxd4 {[%clk 0:00:44.1]} 24... f5 {[%clk 0:00:14.1]} 25. e6
{[%clk 0:00:43.2]} 25... Qg6 {[%clk 0:00:15.3]} 26. Rf3 {[%clk 0:00:43.2]} 26...
Qg4 {[%clk 0:00:12.9]} 27. Rg3 {[%clk 0:00:42.2]} 27... Qxe2 {[%clk 0:00:12.6]}
28. Rxg7+ {[%clk 0:00:42.9]} 28... Kf8 {[%clk 0:00:14]} 29. Rxe2 {[%clk
0:00:39.7]} 29... Re7 {[%clk 0:00:08.5]} 30. Rg5 {[%clk 0:00:36.2]} 30... Nb7
{[%clk 0:00:04.5]} 31. Rxf5+ {[%clk 0:00:36.1]} 31... Kg8 {[%clk 0:00:04.4]} 32.
Re3 {[%clk 0:00:36.3]} 32... Rae8 {[%clk 0:00:04.9]} 33. Rg3+ {[%clk 0:00:37.4]}
1-0